Cogmind - Beta 15 @@@ ROGUE MODE // 2025.09.14 @ 19:37:47 Player: Wotf Result: Destroyed by P-60 Hacker with Shock Rifle Performance ------------- Evolutions (0) 0 Regions Visited (3) 600 Robots Destroyed (39) 195 Value Destroyed (896) 896 Prototype IDs (2) 40 Alien Tech Used (0) 0 Bonus (0) 0 TOTAL SCORE: 1731 Bonus ------- None Cogmind --------- Core Integrity 0/250 Matter 300/300 Energy 160/250 System Corruption 2% Temperature Cool (0) Movement Walking (120) Location -7/Recycling Parts ------- > --- POWER (1) -------- Ion Engine > --- PROPULSION (2) --- Aluminum Leg Aluminum Leg > --- UTILITY (2) ------ Small Storage Unit Melee Analysis Suite > --- WEAPON (2) ------- Greatsword > --- INVENTORY (8) ---- Light Ion Engine Aluminum Leg Improved Medium Armor Plating Scrap Shield Plasma Cannon Grenade Launcher Peak State ------------ > --- POWER ------------ Ion Engine > --- PROPULSION ------- Aluminum Leg Aluminum Leg > --- UTILITY ---------- Small Storage Unit Machine Analyzer > --- WEAPON ----------- Greatsword > --- INVENTORY -------- Light Ion Engine Aluminum Leg Improved Medium Armor Plating Scrap Shield Grenade Launcher [Rating: 16] Favorites ----------- Power Ion Engine Engine Ion Engine Propulsion Aluminum Leg Leg Aluminum Leg Wheel Wheel Utility Small Storage Unit Device Disposable Heat Sink Storage Small Storage Unit Processor Melee Analysis Suite Protection Medium Armor Plating Weapon EM Shotgun Energy Gun EM Shotgun Ballistic Gun Subdweller Machine Gun Launcher Grenade Launcher Special Weapon Mining Laser Slashing Weapon Greatsword Build | -11 -10 -10 -7 ------- Run | Yrd Mat Sub Rec Slots Evolved . | . . . . Power . | . . . . Propulsion . | . . . . Utility . | . . . . Weapon . | . . . . Parts Attached 30 | 5 18 4 3 Power 4 | 1 2 1 . Engine 4 | 1 2 1 . Core . | . . . . Reactor . | . . . . Propulsion 8 | 2 6 . . Treads . | . . . . Leg 6 | . 6 . . Wheel 2 | 2 . . . Hover . | . . . . Flight . | . . . . Utility 7 | . 5 . 2 Device 3 | . 3 . . Storage 1 | . 1 . . Processor 2 | . . . 2 Hackware . | . . . . Protection 1 | . 1 . . Artifact . | . . . . Weapon 11 | 2 5 3 1 Energy Gun 6 | 1 5 . . Energy Cannon . | . . . . Ballistic Gun 2 | 1 . 1 . Ballistic Cannon . | . . . . Launcher 1 | . . 1 . Special Weapon 1 | . . 1 . Impact Weapon . | . . . . Slashing Weapon 1 | . . . 1 Piercing Weapon . | . . . . Special Melee Weapon . | . . . . Unidentified Prototypes . | . . . . Parts Lost 4 | . 2 2 . Power . | . . . . Propulsion . | . . . . Utility . | . . . . Weapon 4 | . 2 2 . Highest Loss Streak 2 | . 2 1 . To Critical Strikes . | . . . . Average Backups 7 | 3 7 7 6 Power . | . . 1 1 Propulsion 1 | 2 1 1 1 Utility 2 | . 3 3 2 Weapon 1 | 1 1 1 1 Tool/Special . | . . . . Unused Backups 14 | . 4 1 9 Power 2 | . 1 . 1 Propulsion 3 | . 2 . 1 Utility 7 | . 1 1 5 Weapon 2 | . . . 2 Tool/Special . | . . . . Average Slot Usage (%) 96 | . 96 100 90 Engine 13 | . 13 14 14 Leg 27 | . 27 28 28 Device 9 | . 12 . . Storage 12 | . 11 14 14 Processor 1 | . . . 9 Protection 4 | . 2 14 4 Energy Gun 21 | . 26 14 . Ballistic Gun 1 | . . 8 4 Launcher 1 | . . 4 5 Slashing Weapon 1 | . . . 8 Peak Build Rating 16 | 5 11 11 16 Average Rating 10 | 3 10 10 13 On Entrance 6 | . 5 11 10 Naked Turns . | . . . . Heaviest Build 24 | 6 23 24 24 Greatest Support 20 | 20 20 20 20 Greatest Overweight (x) 1 | . 1 1 1 Average Overweight (x) . | . . 1 . Largest Inventory Capacity 8 | 5 8 8 8 Average Capacity 7 | 5 7 8 8 Most Carried 8 | 5 8 8 8 Average Carried 7 | 3 7 7 7 Final Capacity 8 | 5 8 8 8 Final Carried 8 | 5 8 8 7 Class Distribution -------------------- 91% | Mutant 8% | Gladiator Dominant Class ---------------- Mutant | -10/Materials Mutant | -10/Subcaves Gladiator | -7/Recycling Resources | -11 -10 -10 -7 ----------- Run | Yrd Mat Sub Rec Matter Collected 743 | 332 239 99 73 Remotely . | . . . . Salvage Created 1477 | 63 894 135 385 Parts 72 | 3 52 11 6 Haulers Intercepted . | . . . . Recyclers Shooed . | . . . . Parts Field Recycled . | . . . . Retrieved Matter . | . . . . Parts Self-Destructed 6 | . . 6 . Prevented 1 | . . 1 . Kills | -11 -10 -10 -7 ------- Run | Yrd Mat Sub Rec Combat Hostiles Destroyed 24 | 1 17 6 . Melee 1 | . 1 . . Guns 21 | 1 14 6 . AOE 1 | . 1 . . Classes Destroyed 9 | 2 5 2 . Worker 2 | 1 1 . . Builder 1 | . 1 . . Recycler 6 | . 1 . 5 Operator 2 | . 2 . . Turret 2 | . . 2 . Watcher 2 | . 2 . . Swarmer 7 | . 3 4 . Grunt 15 | 1 14 . . Subdweller 2 | . . 2 . Best Kill Streak 6 | 2 5 6 2 Combat Bots Only 5 | 1 5 4 . Max Kills in Single Turn 2 | 1 2 1 1 Gunslinging 1 | . 1 . . Exploded 1 | . 1 . . Melee 1 | . 1 . . Uniques/NPCs Destroyed . | . . . . Combat | -11 -10 -10 -7 -------- Run | Yrd Mat Sub Rec Hostile Shots Fired 124 | 2 42 65 15 Missed 42 | . 12 27 3 Hits 82 | 2 30 38 12 Projectile 82 | 2 30 38 12 Critical Strikes 2 | . . 1 1 Damage Taken 977 | 22 456 314 185 Core 255 | . 143 49 63 Absorbed by Shields . | . . . . Core Remaining (%) 100 | 100 . . . Volleys Fired 68 | 4 43 21 . Largest 2 | 2 2 2 . Hottest 145 | 60 90 145 . Shots Fired 125 | 6 86 33 . Gun 114 | 6 86 22 . Cannon . | . . . . Launcher 9 | . . 9 . Special 2 | . . 2 . Kinetic 10 | 4 . 6 . Thermal 4 | 2 . 2 . Explosive 9 | . . 9 . Electromagnetic 102 | . 86 16 . Robot Hit Streak 9 | 3 9 8 . Robot Miss Streak 5 | 1 5 4 . Penetration Max . | . . . . Secondary Targets 3 | . 1 2 . Max Gunslinging Chain 1 | . 1 1 . Shots Hit Robots 101 | 4 65 25 7 Core Hits 70 | 3 45 19 3 Critical Kills . | . . . . Critical Parts Destroyed . | . . . . Critical Strikes . | . . . . Melee Attacks 9 | . . . 9 Impact . | . . . . Slashing 9 | . . . 9 Piercing . | . . . . Sneak Attacks 5 | . . . 5 Combat Hostiles . | . . . . Follow-up Attacks . | . . . . Damage Inflicted 2218 | 52 1103 455 608 Guns 1230 | 52 952 226 . Cannons . | . . . . Explosions 328 | . 147 181 . Melee 608 | . . . 608 Ramming 4 | . 4 . . Kinetic 113 | 41 . 72 . Thermal 206 | 11 147 48 . Explosive 181 | . . 181 . Electromagnetic 1106 | . 952 154 . Impact . | . . . . Slashing 608 | . . . 608 Piercing . | . . . . Highest Corruption 2 | . . . 2 Average Corruption 1 | . . . 1 Corruption Purged . | . . . . Corruption Blocked . | . . . . Effects 1 | . . . 1 Energy Discharges 1 | . . . 1 Overload Shots . | . . . . Overflow Damage 169 | . 15 . 154 Projectiles . | . . . . Explosions 15 | . 15 . . Melee 154 | . . . 154 Knockbacks . | . . . . Impact . | . . . . Kinetic . | . . . . Secondary . | . . . . Self-Inflicted Damage 106 | . 106 . . Shots 3 | . 3 . . Rammed . | . . . . Targets Rammed 1 | . 1 . . Kicked 1 | . 1 . . Crushed . | . . . . Highest Temperature 189 | 12 189 . . Average Temperature 49 | 9 50 . . Received Heat Transfer 297 | 12 177 108 . Siege Activations . | . . . . Martial Activations . | . . . . Shielding Activations . | . . . . Robots Disrupted . | . . . . Combat Hostiles . | . . . . Robots Corrupted 1 | . 1 . . Combat Hostiles 1 | . 1 . . Parts Fried 2 | . 2 . . Impact Corruptions . | . . . . Robots Melted . | . . . . Combat Hostiles . | . . . . Parts Melted 1 | . 1 . . Heat Transferred 275 | 25 150 100 . Parts Sabotaged . | . . . . Parts Stolen . | . . . . Parts Stripped . | . . . . Power Chain Reactions 4 | . 4 . . Alert | -11 -10 -10 -7 ------- Run | Yrd Mat Sub Rec Maximum Alert Level 1 | . 1 . . Low Security (%) 68 | 100 61 . 100 Level 1 31 | . 38 . . Level 2 . | . . . . Level 3 . | . . . . Level 4 . | . . . . Level 5 . | . . . . High Security . | . . . . Max Security . | . . . . Peak Influence 293 | 20 293 . 124 Initial 124 | . 6 . 124 Average 133 | 3 148 . 89 Influence Increases 895 | 25 605 240 25 Destroy 0b10 Robot/C 480 | 20 340 120 . Destroy 0b10 Robot/NC 65 | 5 35 . 25 Destroy Leader 84 | . 84 . . Successful Hack 11 | . 11 . . Disable Machine 45 | . 45 . . Destroy Structure 15 | . 15 . . Lose Combat Pursuer 195 | . 75 120 . Influence Decreases 836 | 15 380 214 227 Entered New Map 255 | . 4 114 137 Time Decay 541 | 15 356 80 90 Lost Part 40 | . 20 20 . Squads Dispatched 4 | . 4 . . Investigation 1 | . 1 . . Extermination . | . . . . Reinforcement 3 | . 3 . . Assault . | . . . . Garrison . | . . . . Intercept . | . . . . Searches Triggered . | . . . . Construction Impeded . | . . . . Haulers Reinforced . | . . . . Active Scanning Responses . | . . . . Cargo Convoy Interrupts . | . . . . Stealth | -11 -10 -10 -7 --------- Run | Yrd Mat Sub Rec Distress Signals 1 | . 1 . . Communications Jammed . | . . . . Distress Signals . | . . . . Times Spotted 46 | 1 27 12 6 Peak Tracking Total 6 | 1 5 6 5 Tactical Retreats 6 | . 4 2 . Traps | -11 -10 -10 -7 ------- Run | Yrd Mat Sub Rec Traps Triggered 2 | . 2 . . Indirectly . | . . . . Trap Hack Attempts . | . . . . Triggered . | . . . . Disarmed . | . . . . Reprogrammed . | . . . . Reused . | . . . . Traps Extracted . | . . . . Installed . | . . . . Triggered . | . . . . Machines | -11 -10 -10 -7 ---------- Run | Yrd Mat Sub Rec Machines Disabled 7 | . 3 4 . Max in Single Turn 2 | . 1 2 . Machines Repaired . | . . . . Machines Dismantled . | . . . . Machines Sabotaged . | . . . . Overloaded Fab Kills . | . . . . Hacking | -11 -10 -10 -7 --------- Run | Yrd Mat Sub Rec Machines Accessed 6 | . 6 . . Terminals 5 | . 5 . . Fabricators . | . . . . Repair Stations . | . . . . Recycling Units 1 | . 1 . . Scanalyzers . | . . . . Garrison Access . | . . . . Total Hacks 14 | . 14 . . Successful 8 | . 8 . . Failed 6 | . 6 . . Catastrophic . | . . . . Database Lockouts . | . . . . Manual 8 | . 8 . . Terminals 13 | . 13 . . Fabricators . | . . . . Repair Stations . | . . . . Recycling Units 1 | . 1 . . Scanalyzers . | . . . . Garrison Access . | . . . . Terminal Hacks 4 | . 4 . . Prototype ID Bank 1 | . 1 . . Patrol Status 1 | . 1 . . Registered Components 1 | . 1 . . Zone Layout 1 | . 1 . . Fabricator Hacks . | . . . . Repair Station Hacks . | . . . . Recycling Unit Hacks 1 | . 1 . . Report Inventory 1 | . 1 . . Scanalyzer . | . . . . Garrison Access Hacks . | . . . . Unauthorized Hacks 3 | . 3 . . Terminals 3 | . 3 . . Botnet 3 | . 3 . . Fabricators . | . . . . Repair Stations . | . . . . Recycling Units . | . . . . Scanalyzers . | . . . . Garrison Access . | . . . . Data Cores Recovered . | . . . . Used . | . . . . Hacking Detections 4 | . 4 . . Full Trace Events . | . . . . Feedback Events . | . . . . Feedback Blocked . | . . . . Robot Schematics Acquired . | . . . . Robots Built . | . . . . Authchips . | . . . . Time . | . . . . Total Robot Build Rating . | . . . . Part Schematics Acquired . | . . . . Parts Built . | . . . . Authchips . | . . . . Time . | . . . . Total Part Build Rating . | . . . . Parts Repaired . | . . . . Time . | . . . . Parts Recycled . | . . . . Recycled Matter . | . . . . Retrieved Matter . | . . . . Retrieved Components . | . . . . Parts Scanalyzed . | . . . . Part Schematics Acquired . | . . . . Parts Damaged . | . . . . Bothacking | -11 -10 -10 -7 ------------ Run | Yrd Mat Sub Rec Used RIF Installer . | . . . . Robots Hacked . | . . . . Non-combat . | . . . . Combat . | . . . . Robot Hacks Applied . | . . . . Relay Couplers Released . | . . . . Fabnet Peak Effective % . | . . . . Robots Rewired . | . . . . Allies Hacked . | . . . . Hacks Repelled . | . . . . Allies | -11 -10 -10 -7 -------- Run | Yrd Mat Sub Rec Total Allies . | . . . . Largest Group . | . . . . Highest-Rated Group . | . . . . Highest-Rated Ally . | . . . . Total Orders . | . . . . Ally Attacks . | . . . . Total Damage . | . . . . Kills . | . . . . Allies Corrupted . | . . . . Allies Melted . | . . . . Intel | -11 -10 -10 -7 ------- Run | Yrd Mat Sub Rec Active Infowar (turns) 27 | . . . 27 Machine Analysis 27 | . . . 27 Robot Analysis Total . | . . . . Derelict Logs Recovered 1 | . . 1 . Drone Launches . | . . . . Drone Recoveries . | . . . . Exploration | -11 -10 -10 -7 ------------- Run | Yrd Mat Sub Rec Turns Passed 1740 | 92 1284 172 192 Spaces Moved 1019 | 76 783 50 110 Core 19 | 19 . . . Treads . | . . . . Legs 924 | . 764 50 110 Wheels 76 | 57 19 . . Hover . | . . . . Flight . | . . . . Fastest Speed 50 | 50 80 190 120 Average Speed 127 | 72 127 190 138 Slowest Speed 190 | 80 190 190 190 Overloaded Moves . | . . . . Propulsion Burnouts . | . . . . Robots Hopped . | . . . . Potential Cave-ins . | . . . . Cave-ins Triggered . | . . . . Exploration Rate (%) 35 | 8 96 4 35 Regions Visited 3 Branch Regions 2 Pre-discovered Areas . | . . . . Known Exits Taken . | . . . . Unknown Exits Taken 3 | 1 1 1 . Scrap Searched . | . . . . Spaces Dug . | . . . . Terrain Destroyed 25 | . 13 12 . Melee . | . . . . Projectile . | . . . . AOE 25 | . 13 12 . Terrain Rammed . | . . . . Walls Destroyed . | . . . . Machines Disabled . | . . . . Actions | -11 -10 -10 -7 --------- Run | Yrd Mat Sub Rec Total 1328 | 106 990 93 139 Wait 113 | 12 92 7 2 Move 1016 | 75 782 49 110 Hop . | . . . . Pick Up 45 | 10 23 6 6 Fast Attach 11 | . 11 . . Attach 23 | 5 11 4 3 Detach 5 | . 2 1 2 Swap . | . . . . Drop 37 | . 25 5 7 Fire 68 | 4 43 21 . Melee 9 | . . . 9 Ram . | . . . . Kick 1 | . 1 . . Crush . | . . . . Escape Stasis . | . . . . Rewire . | . . . . Trap . | . . . . Miscellaneous . | . . . . Route ------- -11/Scrapyard -10/Materials (discovered 6 exits: [*Mat x3] / [*Min x2] / [*Sub]) -10/Subcaves -7/Recycling History --------- Turn | Location | Event 2 | -11/Scrapyard | Met Revision 17 64 | -11/Scrapyard | Discovered new exit (range 8) 93 | -11/Scrapyard | Entered Materials 258 | -10/Materials | Discovered new exit (range 3) 319 | -10/Materials | Build established: Mutant 532 | -10/Materials | Discovered new exit (range 8) 608 | -10/Materials | Discovered new exit (range 7) 866 | -10/Materials | Core integrity fell below 50% 918 | -10/Materials | Discovered new exit (range 8) 1252 | -10/Materials | Discovered new exit (range 16) 1368 | -10/Materials | Discovered new exit (range 6) 1377 | -10/Materials | Entered Subcaves 1378 | -10/Subcaves | Approached by a straggling Scientist 1383 | -10/Subcaves | Learned 2 Materials zone layouts 1459 | -10/Subcaves | Discovered new exit (range 12) 1549 | -10/Subcaves | Entered Recycling 1724 | -7/Recycling | Core integrity fell below 20% 1741 | -7/Recycling | Destroyed by P-60 Hacker with Shock Rifle Last Messages --------------- 01679_ Destroyed Lgt. Ion Engine. 01679_ Destroyed Com. Wheel. 01679_ R-06 Scavenger destroyed. 01688_ Sneak attack on R-06 Scavenger. 01688_ R-06 Scavenger destroyed. 01689_ R-06 Scavenger collects Sml. Storage Unit. 01691_ R-06 Scavenger collects Tractor Beam. 01713_ P-60 Hacker springs to life. 01714_ I-36 Angel springs to life. 01714_ P-60 Hacker springs to life. 01714_ Chain reaction triggered in Lgt. Nuclear Core. 01714_ G-47 Trooper destroyed. 01714_ I-36 Angel destroyed. 01714_ I-36 Angel springs to life. 01714_ B-48 Gladiator springs to life. 01722_ Sneak attack on R-06 Scavenger. 01722_ R-06 Scavenger destroyed. 01738_ Destroyed Gravmag System. 01739_ System corrupted: Energy discharge (-100). 01741_ Destroyed Imp. Heat Sink. Map ----- +----------------------------------------------------+ | # #??????????????????????????? | | # #??????????????????????????? | | # #??????????????????????????? | | # #??????????????????????????? | | " # #??????????????????????????? | | " ##+###########??????????????????????????? | | " #????????????????????????????????????? | | " #????????????????????????????????????? | | #????????????????????????????????????? | | ##+##+#####?##?????????????????????????????? | | " # #?# #######??????????????????????? | | " ? # #?# #??????????????????????? | | " ???# = #?# #??????????????????????? | | "?????# ### #??????????????????????? | | ??????# ## #??????????????????????? | | ??????# ]### #??????????????????????? | | ??????# #?# #????######????????????? | | ??????# % !%#?# #????# ????????????? | | ?? #######+#+### #??### #???##+######? | | ? %# #??# / #?? % # | | ? + #??#// #? !* # | | ? # #???/ #! =%* # | | ??################# #????# # % ! # | | ??????????????????# #????# + =%] # | | ??????????????????# #????# # # | | ??????????????????# @###### # ! = !! # | | ??????????????????# pp !%= / # | | ??????????????????# ########### ! # | | ??????????????????# #??????????! [ # | | ??????????????????# #??????????? = # | | ??????????????????# #??????????? # | | ??????????????????# #????????????########### | | ??????????????????######r##??????????????????????? | | ????????????????????????##???????????????????????? | | ?????????????????????????????????????????????????? | | | | | | | | | | | | | | | | | | | | | | | | | | | | | | | +----------------------------------------------------+ Best States ------------- Heat Dissipation 25 Coolant Potential 100 Energy Generation 10 Energy Capacity 250 Matter Stores 300 Matter Capacity 300 Sight Range 16 Terrain Scan Density 10 Armor Coverage 225 Evasion (%) 55 Melee Accuracy 5 Item Schematics ----------------- None Robot Schematics ------------------ None Fabricated ------------ Nothing Repaired ---------- Nothing Alien Tech Used ----------------- None Achievements -------------- None Challenges ------------ None Game ------ Seed StealthSmallTether Manual? 0 Play Time 00:31:39 Cumulative 56.0 hours Start 2025.09.09 @ 20:18:16 End 2025.09.14 @ 19:37:47 Sessions 4 Manual Loads 0 Difficulty Rogue Special Mode None Game No. 45 Rogue 33 Adventurer 12 Explorer 0 Win Type - Total 1 Types 1/0/0/0/0/0/0/0/0/0 Lore% 21 Gallery% 27 Achievement% 30 Wizard Run 0 Options --------- Layout 0 ASCII 0 Keyboard 0 Movement Numpad Keybinds 0 Fullscreen 2 Font 24/Smallcaps Map View 76x50 Zoom Use 0% Tactical HUD 1 Map Filters NONE Filters NONE Steam 1 RUN: 73ae2259-badf-4069-9d6e-a26236df13ab